Cogmind - Beta 13 @@@ ROGUE MODE // 2024.04.01 @ 22:03:53 Player: KoT Result: Destroyed by G-47 Trooper with Particle Gun Performance ------------- Evolutions (2) 1000 Regions Visited (3) 600 Robots Destroyed (44) 220 Value Destroyed (1283) 1283 Prototype IDs (0) 0 Alien Tech Used (0) 0 Bonus (0) 0 TOTAL SCORE: 3103 Bonus ------- None Cogmind --------- Core Integrity 0/550 Matter 250/300 Energy 189/265 System Corruption 6% Temperature Cool (19) Movement Treading (145) Location -8/Materials Parts ------- > --- POWER (1) -------- Reinforced Ion Engine > --- PROPULSION (3) --- Advanced Treads > --- UTILITY (4) ------ Target Analyzer Improved Medium Armor Plating Recalibrator > --- WEAPON (3) ------- (None) > --- INVENTORY (5) ---- Light Ion Engine Targeting Computer Field Recycling Unit (0) Improved Datajack Peak State ------------ > --- POWER ------------ Improved Ion Engine > --- PROPULSION ------- Armored Treads Armored Treads Armored Treads > --- UTILITY ---------- Improved Heat Sink Small Storage Unit Structural Scanner Improved Signal Interpreter > --- WEAPON ----------- Heavy Assault Rifle Heavy Assault Rifle Mace > --- INVENTORY -------- Light Nuclear Core Armored Treads Targeting Computer Field Recycling Unit Ion Cannon Heavy Assault Rifle Grenade Launcher Improved Datajack [Rating: 26] Favorites ----------- Power Improved Ion Engine Engine Improved Ion Engine Power Core Light Nuclear Core Propulsion Armored Treads Treads Armored Treads Leg Aluminum Leg Utility Small Storage Unit Device Structural Scanner Storage Small Storage Unit Processor Signal Interpreter Hackware Hacking Suite Protection Improved Medium Armor Plating Weapon Heavy Assault Rifle Energy Gun EM Pulse Gun Energy Cannon Beam Cannon Ballistic Gun Heavy Assault Rifle Launcher Grenade Launcher Impact Weapon Mace Special Melee Weapon Improved Datajack Build | -11 -10 -9 -8 ------- Run | Yrd Mat Mat Mat Slots Evolved 4 | . . 2 2 Power . | . . . . Propulsion 1 | . . 1 . Utility 2 | . . 1 1 Weapon 1 | . . . 1 Parts Attached 53 | 7 2 20 24 Power 7 | 1 1 3 2 Engine 6 | 1 1 3 1 Core 1 | . . . 1 Reactor . | . . . . Propulsion 21 | 2 . 10 9 Treads 17 | 2 . 6 9 Leg 4 | . . 4 . Wheel . | . . . . Hover . | . . . . Flight . | . . . . Utility 10 | 1 1 2 6 Device 4 | . 1 1 2 Storage 1 | 1 . . . Processor 3 | . . 1 2 Hackware 1 | . . . 1 Protection 1 | . . . 1 Artifact . | . . . . Weapon 15 | 3 . 5 7 Energy Gun 1 | 1 . . . Energy Cannon 1 | . . 1 . Ballistic Gun 10 | 2 . 3 5 Ballistic Cannon . | . . . . Launcher 1 | . . . 1 Special Weapon . | . . . . Impact Weapon 1 | . . 1 . Slashing Weapon . | . . . . Piercing Weapon . | . . . . Special Melee Weapon 1 | . . . 1 Unidentified Prototypes . | . . . . Parts Lost 22 | . 1 8 13 Power 2 | . . 1 1 Propulsion 6 | . . 3 3 Utility 5 | . 1 . 4 Weapon 9 | . . 4 5 Highest Loss Streak 11 | . 1 4 11 To Critical Strikes . | . . . . Average Slot Usage (%) 79 | . 87 73 80 Engine 8 | . 14 8 6 Treads 20 | . 28 16 21 Leg 2 | . . 8 . Device 8 | . 2 6 12 Storage 10 | . 14 11 7 Processor 4 | . . 1 8 Ballistic Gun 16 | . 28 13 13 Impact Weapon 5 | . . 6 7 Naked Turns 28 | . . . 28 Heaviest Build 22 | 12 14 18 22 Greatest Support 66 | 40 40 63 66 Greatest Overweight (x) 5 | . . 3 5 Average Overweight (x) . | . . . . Largest Inventory Capacity 8 | 8 8 8 8 Average Capacity 7 | 7 8 8 7 Most Carried 8 | 5 8 8 8 Average Carried 6 | 2 6 6 6 Final Capacity 8 | 8 8 8 5 Final Carried 8 | 3 8 8 4 Class Distribution -------------------- 68% | Mutant 31% | Scavenger-Mutant Dominant Class ---------------- Mutant | -10/Materials Mutant | -9/Materials Mutant | -8/Materials Resources | -11 -10 -9 -8 ----------- Run | Yrd Mat Mat Mat Matter Collected 1260 | 268 186 345 461 Remotely . | . . . . Salvage Created 1560 | . 216 687 657 Parts 97 | . 18 50 29 Haulers Intercepted . | . . . . Recyclers Shooed 4 | . 1 2 1 Parts Field Recycled . | . . . . Retrieved Matter . | . . . . Parts Self-Destructed . | . . . . Prevented . | . . . . Kills | -11 -10 -9 -8 ------- Run | Yrd Mat Mat Mat Combat Hostiles Destroyed 38 | . 7 17 14 Guns 32 | . 7 14 11 Cannons 3 | . . 3 . AOE 1 | . . . 1 Classes Destroyed 9 | . 3 3 3 Builder 1 | . . . 1 Recycler 2 | . . 1 1 Mechanic 1 | . . . 1 Operator 1 | . . 1 . Watcher 1 | . 1 . . Swarmer 13 | . 3 6 4 Grunt 15 | . 4 6 5 Sentry 9 | . . 5 4 Hunter 1 | . . . 1 Best Kill Streak 4 | . 4 4 3 Combat Bots Only 4 | . 4 4 2 Max Kills in Single Turn 1 | . 1 1 1 Gunslinging . | . . . . Exploded 1 | . . . 1 Melee . | . . . . Uniques/NPCs Destroyed . | . . . . Combat | -11 -10 -9 -8 -------- Run | Yrd Mat Mat Mat Hostile Shots Fired 417 | . 72 152 193 Missed 135 | . 30 50 55 Damage Taken 3780 | . 470 1232 2078 Core 978 | . 100 325 553 Absorbed by Shields . | . . . . Regen/Repaired (Parts) 18 | . . . 18 Core Remaining (%) 59 | 100 60 18 . Volleys Fired 221 | . 43 96 82 Largest 2 | . 2 2 2 Hottest 83 | . 40 83 46 Shots Fired 326 | . 86 119 121 Gun 319 | . 86 116 117 Cannon 3 | . . 3 . Launcher 4 | . . . 4 Special . | . . . . Kinetic 319 | . 86 116 117 Thermal 3 | . . 3 . Explosive 4 | . . . 4 Electromagnetic . | . . . . Robot Hit Streak 15 | . 6 8 15 Robot Miss Streak 5 | . 5 5 5 Penetration Max . | . . . . Secondary Targets 4 | . 4 . . Max Gunslinging Chain 1 | . 1 . . Shots Hit Robots 211 | . 47 81 83 Core Hits 83 | . 18 32 33 Critical Kills 2 | . . 1 1 Critical Parts Destroyed 1 | . 1 . . Critical Strikes 3 | . 1 1 1 Destroy 3 | . 1 1 1 Melee Attacks 19 | . . 4 15 Impact 19 | . . 4 15 Slashing . | . . . . Piercing . | . . . . Sneak Attacks 4 | . . 1 3 Combat Hostiles . | . . . . Follow-up Attacks . | . . . . Damage Inflicted 2837 | . 485 991 1361 Guns 2105 | . 485 892 728 Cannons 53 | . . 53 . Explosions 296 | . . . 296 Melee 307 | . . 46 261 Ramming 76 | . . . 76 Kinetic 2105 | . 485 892 728 Thermal 53 | . . 53 . Explosive 296 | . . . 296 Electromagnetic . | . . . . Impact 307 | . . 46 261 Slashing . | . . . . Piercing . | . . . . Highest Corruption 6 | . . . 6 Average Corruption 5 | . . . 5 Corruption Purged . | . . . . Corruption Blocked . | . . . . Effects 3 | . . . 3 Message Errors 1 | . . . 1 Energy Discharges 1 | . . . 1 Data Loss (minor) 1 | . . . 1 Overload Shots . | . . . . Overflow Damage 113 | . . . 113 Projectiles . | . . . . Explosions 16 | . . . 16 Melee 97 | . . . 97 Knockbacks 1 | . . . 1 Impact 1 | . . . 1 Kinetic . | . . . . Secondary . | . . . . Self-Inflicted Damage 99 | . . . 99 Shots 3 | . . . 3 Rammed 25 | . . . 25 Targets Rammed 25 | . . . 25 Kicked . | . . . . Crushed . | . . . . Highest Temperature 35 | . 35 8 20 Average Temperature 9 | . 12 4 7 Received Heat Transfer 1458 | . 234 351 873 Siege Activations . | . . . . Robots Corrupted . | . . . . Combat Hostiles . | . . . . Parts Fried 5 | . . . 5 Impact Corruptions 5 | . . . 5 Robots Melted . | . . . . Combat Hostiles . | . . . . Parts Melted . | . . . . Heat Transferred 111 | . . 111 . Parts Sabotaged . | . . . . Parts Stolen . | . . . . Parts Stripped . | . . . . Power Chain Reactions . | . . . . Alert | -11 -10 -9 -8 ------- Run | Yrd Mat Mat Mat Peak Influence 270 | . 166 270 184 Initial 52 | . . 37 52 Average 96 | . 61 132 89 Maximum Alert Level 1 | . . 1 . Low Security (%) 90 | 100 100 72 100 Level 1 9 | . . 27 . Level 2 . | . . . . Level 3 . | . . . . Level 4 . | . . . . Level 5 . | . . . . High Security . | . . . . Max Security . | . . . . Squads Dispatched 7 | . 1 4 2 Investigation 4 | . 1 2 1 Extermination . | . . . . Reinforcement 3 | . . 2 1 Assault . | . . . . Garrison . | . . . . Intercept . | . . . . Searches Triggered . | . . . . Construction Impeded . | . . . . Haulers Reinforced . | . . . . Active Scanning Responses . | . . . . Cargo Convoy Interrupts . | . . . . Stealth | -11 -10 -9 -8 --------- Run | Yrd Mat Mat Mat Distress Signals 5 | . . 2 3 Communications Jammed . | . . . . Distress Signals . | . . . . Times Spotted 68 | . 12 32 24 Peak Tracking Total 8 | . 4 6 8 Tactical Retreats 5 | . 4 1 . Traps | -11 -10 -9 -8 ------- Run | Yrd Mat Mat Mat Traps Triggered 5 | . 1 1 3 Indirectly . | . . . . Trap Hack Attempts 35 | . . . 35 Triggered . | . . . . Disarmed 1 | . . . 1 Reprogrammed 2 | . . . 2 Reused 2 | . . . 2 Traps Extracted . | . . . . Installed . | . . . . Triggered 2 | . . . 2 Machines | -11 -10 -9 -8 ---------- Run | Yrd Mat Mat Mat Machines Disabled 3 | . 1 . 2 Max in Single Turn 1 | . 1 . 1 Machines Repaired . | . . . . Machines Dismantled . | . . . . Machines Sabotaged . | . . . . Overloaded Fab Kills . | . . . . Hacking | -11 -10 -9 -8 --------- Run | Yrd Mat Mat Mat Machines Accessed 7 | . 2 . 5 Terminals 6 | . 2 . 4 Fabricators . | . . . . Repair Stations 1 | . . . 1 Recycling Units . | . . . . Scanalyzers . | . . . . Garrison Access . | . . . . Total Hacks 14 | . 3 . 11 Successful 9 | . 2 . 7 Failed 5 | . 1 . 4 Catastrophic . | . . . . Database Lockouts . | . . . . Manual . | . . . . Terminals 12 | . 3 . 9 Fabricators . | . . . . Repair Stations 2 | . . . 2 Recycling Units . | . . . . Scanalyzers . | . . . . Garrison Access . | . . . . Terminal Hacks 7 | . 2 . 5 Record 2 | . . . 2 Robot Analysis 1 | . . . 1 Alert Level 1 | . 1 . . Locate Traps 1 | . 1 . . Hauler Manifests 1 | . . . 1 Registered Components 1 | . . . 1 Fabricator Hacks . | . . . . Repair Station Hacks 2 | . . . 2 Scan Component 1 | . . . 1 Repair 1 | . . . 1 Recycling Unit Hacks . | . . . . Scanalyzer . | . . . . Garrison Access Hacks . | . . . . Unauthorized Hacks . | . . . . Terminals . | . . . . Fabricators . | . . . . Repair Stations . | . . . . Recycling Units . | . . . . Scanalyzers . | . . . . Garrison Access . | . . . . Data Cores Recovered . | . . . . Used . | . . . . Hacking Detections 5 | . 1 . 4 Full Trace Events 1 | . . . 1 Feedback Events . | . . . . Feedback Blocked . | . . . . Robot Schematics Acquired . | . . . . Robots Built . | . . . . Authchips . | . . . . Time . | . . . . Total Robot Build Rating . | . . . . Part Schematics Acquired . | . . . . Parts Built . | . . . . Authchips . | . . . . Time . | . . . . Total Part Build Rating . | . . . . Parts Repaired 1 | . . . 1 Time 38 | . . . 38 Parts Recycled . | . . . . Recycled Matter . | . . . . Retrieved Matter . | . . . . Retrieved Components . | . . . . Parts Scanalyzed . | . . . . Part Schematics Acquired . | . . . . Parts Damaged . | . . . . Bothacking | -11 -10 -9 -8 ------------ Run | Yrd Mat Mat Mat Used RIF Installer . | . . . . Robots Hacked . | . . . . Non-combat . | . . . . Combat . | . . . . Robot Hacks Applied . | . . . . Relay Couplers Released . | . . . . Fabnet Peak Effective % . | . . . . Robots Rewired . | . . . . Allies Hacked . | . . . . Hacks Repelled . | . . . . Allies | -11 -10 -9 -8 -------- Run | Yrd Mat Mat Mat Total Allies . | . . . . Largest Group . | . . . . Highest-Rated Group . | . . . . Highest-Rated Ally . | . . . . Total Orders . | . . . . Ally Attacks . | . . . . Total Damage . | . . . . Kills . | . . . . Allies Corrupted . | . . . . Allies Melted . | . . . . Intel | -11 -10 -9 -8 ------- Run | Yrd Mat Mat Mat Robot Analysis Total 1 | . . . 1 Derelict Logs Recovered . | . . . . Drone Launches . | . . . . Drone Recoveries . | . . . . Exploration | -11 -10 -9 -8 ------------- Run | Yrd Mat Mat Mat Turns Passed 2742 | 58 526 933 1225 Spaces Moved 1291 | 38 245 447 561 Core 68 | 16 . 19 33 Treads 1064 | 22 245 269 528 Legs 159 | . . 159 . Wheels . | . . . . Hover . | . . . . Flight . | . . . . Fastest Speed 50 | 50 160 100 50 Average Speed 153 | 113 160 149 156 Slowest Speed 300 | 160 160 200 300 Overloaded Moves . | . . . . Propulsion Burnouts . | . . . . Robots Hopped . | . . . . Cave-ins Triggered . | . . . . Exploration Rate (%) 30 | 4 29 40 47 Regions Visited 3 Branch Regions . Pre-discovered Areas . | . . . . Known Exits Taken 1 | . . 1 . Unknown Exits Taken 2 | 1 1 . . Scrap Searched . | . . . . Spaces Dug 11 | . . 3 8 Terrain Destroyed 31 | . . 3 28 Melee 11 | . . 3 8 Projectile . | . . . . AOE 20 | . . . 20 Terrain Rammed . | . . . . Walls Destroyed . | . . . . Machines Disabled . | . . . . Actions | -11 -10 -9 -8 --------- Run | Yrd Mat Mat Mat Total 1719 | 53 304 603 759 Wait . | . . . . Move 1288 | 37 244 446 561 Hop . | . . . . Pick Up 48 | 8 10 21 9 Fast Attach 18 | 1 1 4 12 Attach 28 | 6 1 11 10 Detach 3 | 1 . . 2 Swap 7 | . . 5 2 Drop 27 | . 5 16 6 Fire 221 | . 43 96 82 Melee 19 | . . 4 15 Ram 21 | . . . 21 Kick . | . . . . Crush 4 | . . . 4 Escape Stasis . | . . . . Rewire . | . . . . Trap 35 | . . . 35 Miscellaneous . | . . . . Route ------- -11/Scrapyard -10/Materials -9/Materials (discovered 2 exits: *Mat / [*Min]) -8/Materials (discovered 1 exit: [*Fac]) History --------- Turn | Location | Event 11 | -11/Scrapyard | Discovered new exit (range 15) 59 | -11/Scrapyard | Entered Materials 313 | -10/Materials | Build established: Mutant 442 | -10/Materials | Discovered new exit (range 10) 585 | -10/Materials | Entered another Materials area 585 | -9/Materials | Evolved 2 slots: Propulsion x1, Utility x1 796 | -9/Materials | Lost 3 parts (2n1w) 893 | -9/Materials | Core integrity fell below 50% 903 | -9/Materials | Lost 4 parts (1p1n2w) 1176 | -9/Materials | Discovered new exit (range 8) 1276 | -9/Materials | Build established: Scavenger-Mutant 1281 | -9/Materials | Core integrity fell below 20% 1403 | -9/Materials | Discovered new exit (range 16) 1516 | -9/Materials | Identified exit to Materials 1518 | -9/Materials | Entered another Materials area 1518 | -8/Materials | Evolved 2 slots: Utility x1, Weapon x1 1646 | -8/Materials | Repaired Lgt. Nuclear Core 2310 | -8/Materials | Build established: Mutant 2413 | -8/Materials | Discovered new exit (range 15) 2559 | -8/Materials | Core integrity fell below 50% 2593 | -8/Materials | Core integrity fell below 20% 2618 | -8/Materials | Lost 11 parts (1p3n3u4w) 2743 | -8/Materials | Destroyed by G-47 Trooper with Particle Gun Last Messages --------------- Found 6 haulers: A-02 Transporter 1x Imp. VTOL Module 2x Hvy. EM Shotgun A-02 Transporter 3x Imp. VTOL Module 3x Hvy. Ion Engine A-02 Transporter 6x ECM Suite A-02 Transporter 1x System Shield 2x Katana A-02 Transporter 1x Hacking Suite 1x Maul A-02 Transporter 6x Hrd. Light Armor Plating 02666_ K-01 Serf cleans the Terminal. 02670_ R-06 Scavenger collects Aluminum Leg. 02672_ K-01 Serf cleans the Terminal. Map ----- +----------------------------------------------------+ | ?????????????????????????????????????????????????? | | ?????????????????????????????????????????????????? | | ?????????????????????????????????????????????????? | | ?????????????????????????????????????????????????? | | ?????????????????????????????????????????????????? | | ?????????????????????????????????????????????????? | | ?????????????????????????????????????????????????? | | ?????????????????????????????????????????????????? | | ?????????????????????????????????????????????????? | | ?????????????????????????????????????????????????? | | ?????????????????????????????????????????????????? | | ?????????????????????????????????????????????????? | | ?????????????????????????????????????????????????? | | ?????????????????????????????????????????????????? | | ?????????????????????????????????????????????????? | | ?????????????????????????????????????????????????? | | ?????????????????????????????????????????????????? | | ?????????????????????????????????????????????????? | | ????????????????????????#####????????????????????? | | ???????????????????????? #????????????????????? | | ???????????????????????? #????????????????????? | | ???????????????????????? #????????????????????? | | ????????????????????????# #????????????????????? | | ????????????????????????# #????????????????????? | | ????????????????????????# #????????????????????? | | ????????????????????????#@ ###+########?????????? | | ????????????????????????# ????????? | | ????????????????????????# g ????????? | | ????????????????????????# g g ????????? | | ????????????????????????# ############?????????? | | ????????????????????????# #????????????????????? | | ????????????????????????# #????????????????????? | | ????????????????????????# #????????????????????? | | ????????????????????????# #????????????????????? | | ????????????????????????# #????????????????????? | | ????????????????????????# #????????????????????? | | ????????????????????????# #????????????????????? | | ????????????????????????# #????????????????????? | | ????????????????????????# #????????????????????? | | ????????????????????????# #????????????????????? | | ?????????????????######## #????????????????????? | | ?????????????????# #????????????????????? | | ?????????????????# #????????????????????? | | ############?????# #????????????????????? | | ############?????# ########????????????????????? | | # ##?????# #?????????????###???????????? | | # """ ! ##?????# #??????????#########????????? | | #""""" ######## ############## #????????? | | #""""" # ! #????????? | | #"""" ""# #????????? | +----------------------------------------------------+ Best States ------------- Heat Dissipation 45 Energy Generation 14 Energy Capacity 265 Matter Stores 300 Matter Capacity 300 Sight Range 16 Robot Scan Range 14 Terrain Scan Density 10 Armor Coverage 225 Evasion (%) 55 Target Analysis 5 Recoil Reduction 3 Offensive Hacking 10 Item Schematics ----------------- None Robot Schematics ------------------ None Fabricated ------------ Nothing Alien Tech Used ----------------- None Achievements -------------- Hehehe Part-time Excavator Challenges ------------ None Game ------ Seed CombatRagnarokTearclaws Manual? 0 Play Time 00:33:06 Cumulative 9.7 hours Start 2024.04.01 @ 21:29:33 End 2024.04.01 @ 22:03:53 Sessions 1 Manual Loads 0 Difficulty Rogue Special Mode None Game No. 16 Rogue 16 Adventurer 0 Explorer 0 Win Type - Total 0 Types 0/0/0/0/0/0/0/0/0 Lore% 17 Gallery% 12 Achievement% 14 Wizard Run 0 Options --------- Layout 1 ASCII 0 Keyboard 0 Movement Arrows Keybinds 0 Fullscreen 1 Font 24/Smallcaps Map View 50x35 Zoom Use 0% Tactical HUD 1 Map Filters NONE Filters NONE Steam 0 RUN: e914e1a7-c475-4a65-be20-4e1302ebc5cf